bitfinex/quotes_ETHUSD_20251201
["timestamp","ask_amount","ask_price","bid_price","bid_amount"]
[1764612980439,0.36353847,2759.8,2759.6,0.001]
[1764612980749,0.36353847,2760.0,2759.6,0.001]
[1764612981949,0.36353847,2760.2,2759.6,0.001]
[1764612982266,1.30959411,2760.5,2759.6,0.001]
[1764612982456,0.36353847,2759.8,2759.6,0.001]
[1764612982967,0.36353847,2759.7,2759.6,0.001]
[1764612983772,0.72559411,2760.4,2759.6,0.001]
[1764612983773,0.36353847,2759.9,2759.6,0.001]
[1764612984064,1.30959411,2760.5,2759.6,0.001]
[1764612984267,0.36353847,2760.1,2759.6,0.001]
[1764612984774,0.36353847,2759.9,2759.6,0.001]
[1764612985468,0.36353847,2759.7,2759.6,0.001]
[1764612990048,0.0997041,2759.8,2759.6,0.001]
[1764612990289,0.584,2760.2,2759.6,0.001]
[1764612990984,0.584,2760.2,2759.6,7.24842716]
[1764612991164,0.6837041,2760.2,2759.6,7.24842716]
[1764612991487,0.36353847,2760.1,2759.6,7.24842716]
[1764612991684,0.19940821,2759.9,2759.6,0.001]
[1764612991894,0.584,2760.2,2759.6,0.001]
[1764612991895,0.36353847,2759.8,2759.6,0.001]
[1764612992082,0.36353847,2759.7,2759.6,0.001]
[1764612993108,0.94753847,2760.2,2759.6,0.001]
[1764612993394,0.36353847,2759.8,2759.6,0.001]
[1764612994300,0.36353847,2760.1,2759.6,0.001]
[1764612994894,0.0997041,2759.7,2759.6,0.001]
[1764612996606,0.0997041,2759.9,2759.6,0.001]
[1764612998411,0.36381886,2759.9,2759.6,0.001]
[1764612999544,0.36381886,2759.7,2759.6,0.001]
[1764613001259,12.4828144,2759.7,2759.6,0.001]
[1764613001554,14.09344194,2759.7,2759.6,0.001]
[1764613001713,5.74259767,2759.7,2759.6,0.001]
[1764613001920,9.94917994,2759.7,2759.6,0.001]
[1764613002252,20.45475894,2759.7,2759.6,0.001]
[1764613002861,7.04601794,2759.7,2759.6,0.001]
[1764613003041,17.69719894,2759.7,2759.6,0.001]
[1764613003351,11.30859094,2759.7,2759.6,0.001]
[1764613003914,2.83943567,2759.7,2759.6,0.001]
[1764613004125,15.98003913,2759.7,2759.6,0.001]
[1764613004342,20.1616534,2759.7,2759.6,0.001]
[1764613004747,16.3398994,2759.7,2759.6,0.001]
[1764613005261,17.5181714,2759.7,2759.6,0.001]
[1764613005757,15.6116094,2759.7,2759.6,0.001]
[1764613006351,17.5401155,2759.7,2759.6,0.001]
[1764613006699,7.3638965,2759.7,2759.6,0.001]
[1764613006821,11.1014455,2759.7,2759.6,0.001]
[1764613007253,7.3638965,2759.7,2759.6,0.001]
[1764613007422,17.0780005,2759.7,2759.6,0.001]
[1764613007622,14.9736945,2759.7,2759.6,0.001]
[1764613007820,12.9219105,2759.7,2759.6,0.001]
[1764613008453,24.88753964,2759.7,2759.6,0.001]
[1764613009225,10.56479895,2759.5,2759.4,0.001]
[1764613009565,10.95136495,2759.5,2759.4,0.001]
[1764613009724,0.405504,2759.2,2759.1,0.001]
[1764613009922,0.405504,2759.2,2758.8,0.001]
[1764613009923,10.73993695,2758.9,2758.8,0.001]
[1764613010121,6.26235865,2758.9,2758.8,0.001]
[1764613010348,1.49446695,2758.9,2758.8,0.001]
[1764613010533,8.66436095,2758.9,2758.8,0.001]
[1764613010864,7.00840595,2758.9,2758.8,0.001]
[1764613011242,10.63303895,2758.9,2758.8,0.001]
[1764613011448,11.26606795,2758.9,2758.8,0.001]
[1764613011644,2.98852526,2758.9,2758.8,0.001]
[1764613011958,9.35393226,2758.9,2758.8,0.001]
[1764613012459,12.54527326,2758.9,2758.8,0.001]
[1764613013156,2.98852526,2758.9,2758.8,0.001]
[1764613013358,4.27378995,2758.9,2758.8,0.001]
[1764613013529,1.67096295,2758.9,2758.8,0.001]
[1764613014158,2.07646695,2758.9,2758.8,0.001]
[1764613016271,5.70109995,2758.9,2758.8,0.001]
[1764613016580,2.07646695,2758.9,2758.8,0.001]
[1764613016878,3.94351446,2758.9,2758.8,0.001]
[1764613017047,7.56814746,2758.9,2758.8,0.001]
[1764613018781,1.49446695,2758.6,2758.5,0.001]
[1764613018943,26.00755309,2758.6,2758.5,0.001]
[1764613019572,29.63258027,2758.6,2758.5,0.001]
[1764613019884,34.15440956,2758.6,2758.5,0.001]
[1764613020246,34.15440956,2758.6,2757.9,0.001]
[1764613020247,0.455504,2758.5,2757.9,0.001]
[1764613020447,23.14493632,2758.5,2757.9,0.001]
[1764613020776,0.405504,2758.3,2757.9,0.001]
[1764613021079,3.90212957,2758.3,2757.9,0.001]
[1764613021249,5.75884095,2758.3,2757.9,0.001]
[1764613021771,7.74387295,2758.3,2757.9,0.001]
[1764613021975,5.2963844,2758.3,2757.9,0.001]
[1764613022277,2.07646695,2758.3,2757.9,0.001]
[1764613022650,14.4491044,2758.3,2757.9,0.001]
[1764613022848,22.03513903,2758.3,2757.9,0.001]
[1764613023456,11.87196403,2758.3,2757.9,0.001]
[1764613023656,10.86576803,2758.3,2757.9,0.001]
[1764613023965,20.16584803,2758.3,2757.9,0.001]
[1764613024866,26.60415403,2758.3,2757.9,0.001]
[1764613025383,1.13109811,2758.2,2757.9,0.001]
[1764613025550,35.04478768,2758.2,2757.9,0.001]
[1764613025755,38.67034057,2758.2,2757.9,0.001]
[1764613028187,10.42913943,2758.2,2757.9,0.001]
[1764613028985,16.31835443,2758.2,2757.9,0.001]
[1764613029984,4.51741654,2758.2,2757.9,0.001]
[1764613030177,7.25480584,2758.2,2757.9,0.001]
[1764613030350,7.25680584,2758.2,2757.9,0.001]
[1764613030977,16.53131484,2758.2,2757.9,0.001]
[1764613031176,10.43405884,2758.2,2757.9,0.001]
[1764613031387,9.22574084,2758.2,2757.9,0.001]
[1764613031595,11.39979665,2758.2,2757.9,0.001]
[1764613031988,12.97372965,2758.2,2757.9,0.001]
[1764613032193,11.77472965,2758.2,2757.9,0.001]
[1764613032861,12.34365776,2758.2,2757.9,0.001]
[1764613033061,12.84904576,2758.2,2757.9,0.001]
[1764613033998,16.87264476,2758.2,2757.9,0.001]
[1764613034973,17.76806076,2758.2,2757.9,0.001]
[1764613035361,10.68945087,2758.2,2757.9,0.001]
[1764613035562,8.51539506,2758.2,2757.9,0.001]
[1764613035763,10.78763395,2758.2,2757.9,0.001]
[1764613036083,7.94646695,2758.2,2757.9,0.001]
[1764613036561,10.31017195,2758.2,2757.9,0.001]
[1764613036880,7.94646695,2758.2,2757.9,0.001]
[1764613037082,9.16185625,2758.2,2757.9,0.001]
[1764613037487,11.52556125,2758.2,2757.9,0.001]
[1764613037685,12.78740914,2758.2,2757.9,0.001]
[1764613037885,16.52699325,2758.2,2757.9,0.001]
[1764613038093,9.16185625,2758.2,2757.9,0.001]
[1764613038579,12.29037925,2758.2,2757.9,0.001]
[1764613039098,15.94981425,2758.2,2757.9,0.001]
[1764613040300,20.72036714,2758.2,2757.9,0.001]
[1764613040487,1.49446695,2758.0,2757.9,0.001]
[1764613040691,28.83569107,2758.0,2757.9,0.001]
[1764613040891,11.05844527,2758.0,2757.9,0.001]
[1764613041090,16.41589927,2758.0,2757.9,0.001]
[1764613041287,20.04171507,2758.0,2757.9,0.001]
[1764613041804,18.84612907,2758.0,2757.9,0.001]
[1764613042102,11.05844527,2758.0,2757.9,0.001]
[1764613042291,12.15128275,2758.0,2757.9,0.001]
[1764613042604,8.52546695,2758.0,2757.9,0.001]
[1764613042907,7.27529821,2758.0,2757.9,0.001]
[1764613043090,7.85629821,2758.0,2757.9,0.001]
[1764613043471,8.26180221,2758.0,2757.9,0.001]
[1764613043671,9.57229611,2758.0,2757.9,0.001]
[1764613044075,0.002,2758.2,2757.9,0.001]
[1764613044274,0.002,2758.2,2757.9,0.769504]
[1764613044605,0.002,2758.2,2757.9,0.14630818]
[1764613044905,0.002,2758.2,2758.0,7.2516316]
[1764613045293,0.002,2758.2,2758.1,0.84282623]
[1764613046104,0.002,2758.2,2758.1,0.74303516]
[1764613046680,0.002,2758.2,2758.1,4.3687195]
[1764613048480,0.002,2758.2,2758.1,4.7317195]
[1764613049408,0.002,2758.2,2758.1,4.3687195]
[1764613049977,0.002,2758.2,2758.1,3.62568434]
[1764613050910,0.002,2758.2,2758.1,3.98868434]
[1764613051813,0.002,2758.2,2758.1,3.72547541]
[1764613053220,0.002,2758.2,2758.1,3.62568434]
[1764613055204,0.002,2758.2,2758.0,0.09979107]
[1764613055416,0.002,2758.2,2758.1,0.363]
[1764613057120,0.002,2758.2,2758.1,3.98868434]
[1764613057923,0.002,2758.2,2758.1,3.62568434]
[1764613058140,0.002,2758.2,2758.0,3.62577004]
[1764613058308,0.002,2758.2,2758.0,7.25158584]
[1764613059143,0.002,2758.2,2757.9,0.001]
[1764613061536,0.0997041,2758.0,2757.9,0.001]
[1764613065843,0.36336884,2758.0,2757.9,0.001]
[1764613066043,0.87557693,2758.0,2757.9,0.001]
[1764613066829,1.28108093,2758.0,2757.9,0.001]
[1764613068556,0.72559411,2758.1,2757.9,0.001]
[1764613068726,0.002,2758.2,2757.9,0.001]
[1764613068727,0.002,2758.2,2757.9,0.406504]
[1764613069048,0.002,2758.2,2758.1,0.50529507]
[1764613069251,0.002,2758.2,2758.1,1.46167162]
[1764613069416,0.002,2758.2,2757.9,0.001]
[1764613069622,0.002,2758.2,2758.0,0.09979107]
[1764613069851,0.002,2758.2,2758.0,0.363]
[1764613070240,0.002,2758.2,2758.0,0.947]
[1764613070535,0.002,2758.2,2758.1,0.50529507]
[1764613071695,0.002,2758.2,2758.1,4.13097941]
[1764613071822,0.002,2758.2,2758.1,4.85657352]
[1764613072929,0.002,2758.2,2758.1,4.45106952]
[1764613073551,0.002,2758.2,2758.0,0.09979107]
[1764613073723,0.002,2758.2,2757.9,0.72659411]
[1764613074048,0.002,2758.2,2757.9,0.001]
[1764613077754,0.002,2758.2,2757.9,0.10079107]
[1764613078767,0.002,2758.2,2757.9,0.001]
[1764613079329,0.002,2758.2,2757.9,0.10079107]
[1764613079837,0.002,2758.2,2758.0,7.2516316]
[1764613080235,0.002,2758.2,2757.9,0.001]
[1764613080659,0.36336884,2758.0,2757.9,0.001]
[1764613081129,0.002,2758.2,2757.9,0.001]
[1764613081330,0.36336884,2758.0,2757.9,0.001]
[1764613082725,1.49446695,2758.0,2757.9,0.001]
[1764613082928,1.28109539,2758.0,2757.9,0.001]
[1764613083131,2.0066895,2758.0,2757.9,0.001]
[1764613083359,5.6325053,2758.0,2757.9,0.001]
[1764613083576,17.2679683,2758.0,2757.9,0.001]
[1764613083727,1.18109811,2757.9,2757.8,0.001]
[1764613083928,11.07343735,2757.7,2757.6,0.001]
[1764613084161,11.26391319,2757.7,2757.6,0.001]
[1764613084559,17.84230919,2757.7,2757.6,0.001]
[1764613085241,13.59702919,2757.7,2757.6,0.001]
[1764613085436,7.73479138,2757.7,2757.6,0.001]
[1764613085764,22.72689695,2757.6,2757.3,0.001]
[1764613085939,14.65741492,2757.6,2757.3,0.001]
[1764613086266,35.83984492,2757.6,2757.3,0.001]
[1764613087731,1.13109811,2757.5,2757.3,0.001]
[1764613087963,1.13109811,2757.5,2755.2,3.62941062]
[1764613087964,19.264214,2756.9,2755.2,3.62941062]
[1764613088172,1.13109811,2756.5,2755.2,3.62941062]
[1764613088376,0.36336884,2755.6,2755.2,3.62941062]
[1764613089232,0.94636884,2755.6,2754.5,10.89119997]
[1764613089430,0.56911561,2757.7,2755.6,0.405504]
[1764613089642,0.585,2757.7,2756.0,0.09979107]
[1764613089869,0.36392,2757.4,2756.0,0.09979107]
[1764613090088,0.36392,2757.4,2756.0,0.47340757]
[1764613090378,0.36392,2757.4,2756.0,0.57319864]
[1764613090592,0.0997041,2757.2,2756.0,0.57319864]
[1764613090804,0.77559411,2758.0,2756.0,0.47340757]
[1764613090987,0.585,2757.9,2756.3,0.09979107]
[1764613091292,0.0997041,2757.3,2756.1,0.47340757]
[1764613091496,0.42608313,2757.8,2756.2,10.88455119]
[1764613091657,0.36392,2757.2,2756.2,10.88455119]
[1764613092486,0.36392,2757.2,2756.2,14.51273492]
[1764613092694,0.36392,2757.3,2756.3,0.363]
[1764613092869,0.36392,2757.3,2756.2,14.98614249]
[1764613093598,0.36392,2757.4,2756.4,0.363]
[1764613093805,0.36392,2757.4,2756.2,14.98614249]
[1764613094301,0.36392,2757.4,2756.4,0.363]
[1764613095062,0.36392,2757.4,2756.3,0.363]
[1764613095264,0.36392,2757.4,2756.4,0.363]
[1764613095602,0.36392,2757.4,2756.5,10.88336658]
[1764613097161,0.19940821,2757.2,2756.5,7.25557772]
[1764613097374,1.31059411,2757.9,2755.8,0.72559411]
[1764613097375,0.0997041,2756.8,2755.8,0.72559411]
[1764613097571,0.36392,2756.7,2755.7,14.51536812]
[1764613097773,0.36392,2756.7,2756.4,0.001]
[1764613100289,0.36392,2756.6,2756.4,0.001]
[1764613102196,1.71509811,2757.1,2756.4,0.001]
[1764613102362,0.5052081,2756.5,2756.4,0.001]
[1764613102558,6.92488621,2756.5,2756.4,0.001]
[1764613102790,7.61737483,2756.5,2756.4,0.001]
[1764613103590,1.92329083,2756.5,2756.4,0.001]
[1764613103795,1.23080221,2756.5,2756.4,0.001]
[1764613103980,1.81480221,2756.5,2756.4,0.001]
[1764613106866,2.17820221,2756.5,2756.4,0.001]
[1764613107196,1.81480221,2756.5,2756.4,0.001]
[1764613110670,0.0997041,2756.7,2756.4,0.001]
[1764613110996,0.36392,2756.5,2756.4,0.001]
[1764613111682,0.0997041,2756.5,2756.4,0.001]
[1764613112467,0.5052081,2756.5,2756.4,0.001]
[1764613116721,6.7453031,2756.5,2756.4,0.001]
[1764613116890,7.47089721,2756.5,2756.4,0.001]
[1764613117094,8.58095959,2756.5,2756.4,0.001]
[1764613120314,7.66774059,2756.5,2756.4,0.001]
[1764613120480,2.51836059,2756.5,2756.4,0.001]
[1764613120676,1.40829821,2756.5,2756.4,0.001]
[1764613122718,1.81380221,2756.5,2756.4,0.001]
[1764613124510,1.40829821,2756.5,2756.4,0.001]
[1764613124715,0.583,2756.5,2756.4,0.001]
[1764613125024,0.002,2756.6,2756.4,0.001]
[1764613126088,0.36592,2756.6,2756.4,0.001]
[1764613126296,0.36392,2756.5,2756.4,0.001]
[1764613130223,0.1017041,2756.6,2756.4,0.001]
[1764613133333,0.582,2756.5,2756.4,0.001]
[1764613134128,0.002,2756.6,2756.4,0.001]
[1764613134301,0.002,2756.6,2756.5,0.09979107]
[1764613134922,0.002,2756.6,2756.5,3.72757993]
[1764613135433,0.002,2756.6,2756.5,4.85867804]
[1764613135638,0.002,2756.6,2756.5,5.29264325]
[1764613136539,0.002,2756.6,2756.5,5.12188697]
[1764613137440,0.002,2756.6,2756.5,5.70388697]
[1764613138711,0.002,2757.6,2756.6,1.13109811]
[1764613138916,0.002,2757.6,2757.5,0.09979107]
[1764613139426,0.002,2757.6,2757.5,4.45185843]
[1764613140724,0.002,2757.6,2757.5,4.85736243]
[1764613141310,0.002,2758.2,2757.7,4.03171424]
[1764613141565,0.002,2758.2,2758.1,0.50529507]
[1764613142551,0.002,2758.8,2758.2,0.405504]
[1764613142859,0.002,2758.8,2758.3,0.582]
[1764613143239,0.002,2758.8,2758.3,0.68179107]
[1764613143557,0.002,2758.8,2758.4,10.87587006]
[1764613143730,0.002,2758.8,2758.4,7.25058004]
[1764613144860,0.002,2758.8,2758.4,3.62529002]
[1764613145059,0.002,2758.8,2757.8,7.2521575]
[1764613145060,0.0997041,2758.7,2757.8,7.2521575]
[1764613145558,0.0997041,2758.7,2757.8,3.62607875]
[1764613146553,0.36592,2758.8,2757.8,3.62607875]
[1764613146796,0.002,2758.8,2757.8,3.62607875]
[1764613146958,0.002,2758.8,2757.9,0.363]
[1764613147427,0.002,2758.8,2757.8,3.62607875]
[1764613147627,0.002,2758.8,2758.0,10.8774474]
[1764613147828,0.002,2758.8,2758.0,7.2516316]
[1764613148132,0.1017041,2758.8,2758.0,7.2516316]
[1764613148625,0.36392,2758.5,2758.0,7.2516316]
[1764613148827,0.36392,2758.5,2758.0,3.6258158]
[1764613149028,0.36392,2758.5,2758.0,7.2516316]
[1764613150049,0.36392,2758.5,2757.7,7.25239248]
[1764613150579,0.36392,2758.5,2756.9,12.98712692]
[1764613150580,0.72559411,2757.9,2756.6,0.72559411]
[1764613150730,0.0997041,2757.4,2756.6,0.72559411]
[1764613150938,0.36392,2757.5,2756.5,10.91929136]
[1764613151133,0.0997041,2757.4,2756.5,7.25557772]
[1764613151332,0.36392,2757.3,2756.5,7.25557772]
[1764613151746,0.36392,2757.4,2756.5,7.25557772]
[1764613152333,0.36392,2757.4,2756.5,10.88336658]
[1764613152960,0.36392,2757.4,2756.5,7.25657772]
[1764613153160,1.08951411,2757.4,2756.5,3.62878886]
[1764613153463,3.62648684,2757.5,2756.5,3.62878886]
[1764613153464,0.36392,2757.2,2756.5,3.62878886]
[1764613153651,0.36392,2757.2,2756.5,7.25657772]
[1764613153856,0.36392,2757.2,2756.6,0.72559411]
[1764613154555,0.36392,2757.2,2756.6,4.35316791]
[1764613155466,0.36392,2757.2,2756.6,3.6275738]
[1764613155661,0.36392,2757.2,2756.6,7.25523105]
[1764613156442,0.36392,2757.2,2756.5,0.001]
[1764613157844,8.38404461,2757.5,2756.5,0.001]
[1764613158034,0.36392,2756.6,2756.5,0.001]
[1764613158237,0.0997041,2756.6,2756.5,0.001]
[1764613160869,0.72559411,2757.1,2756.5,0.001]
[1764613161072,0.36392,2756.8,2756.5,0.001]
[1764613161376,0.36392,2756.7,2756.5,0.001]
[1764613161677,0.0997041,2756.8,2756.5,0.001]
[1764613161859,0.36392,2756.9,2756.5,0.001]
[1764613162036,0.0997041,2757.1,2756.5,0.001]
[1764613163872,0.581,2757.4,2756.5,0.001]
[1764613164238,6.45,2757.5,2756.6,0.581]
[1764613164442,0.0997041,2758.0,2756.6,1.16028574]
[1764613164678,0.581,2758.0,2756.7,0.18868799]
[1764613164840,0.581,2758.0,2757.2,10.88060349]
[1764613165289,0.94492,2758.0,2757.2,7.25373566]
[1764613165598,0.581,2758.0,2757.2,10.88060349]
[1764613165782,0.581,2758.0,2757.2,14.50747132]
[1764613166104,0.581,2758.0,2757.3,0.19958214]
[1764613166285,0.581,2758.0,2757.2,10.88060349]
[1764613166872,0.581,2758.0,2756.7,0.72559411]
[1764613167088,0.36392,2757.7,2756.8,0.581]
[1764613167613,0.36392,2757.7,2756.6,10.88297175]
[1764613167905,0.36392,2757.9,2756.7,0.19958214]
[1764613168577,0.36392,2757.7,2756.7,0.19958214]
[1764613168960,0.581,2758.0,2756.8,10.88218224]
[1764613169165,0.0997041,2757.5,2756.8,10.88218224]
[1764613169404,0.36392,2757.7,2756.8,10.88218224]
[1764613170805,0.36392,2757.9,2757.0,0.09979107]
[1764613170958,6.45,2758.3,2757.1,0.72559411]
[1764613171161,0.72559411,2758.4,2757.4,0.363]
[1764613171362,7.39692,2758.5,2757.4,0.363]
[1764613171593,0.72559411,2758.4,2757.4,0.363]
[1764613172464,1.08951411,2758.4,2757.4,0.363]
[1764613172663,1.08951411,2758.4,2757.4,0.19958214]
[1764613172870,1.08951411,2758.4,2757.5,7.2529465]
[1764613173080,1.90176552,2758.4,2757.5,7.2529465]
[1764613173406,0.36392,2758.3,2757.5,7.2529465]
[1764613174212,0.36392,2758.3,2757.5,10.87941975]
[1764613174378,0.72559411,2758.4,2757.5,10.87941975]
[1764613174577,1.08951411,2758.4,2757.5,10.87941975]
[1764613174886,0.72559411,2758.4,2757.6,0.09979107]
[1764613175193,0.72559411,2758.4,2757.7,10.87863072]
[1764613175522,0.72559411,2758.4,2757.7,7.25242048]
[1764613175819,0.36392,2758.2,2757.7,7.25242048]
[1764613175975,0.72559411,2758.4,2757.7,10.87863072]
[1764613175976,0.36392,2758.3,2757.7,10.87863072]
[1764613176175,1.08951411,2758.4,2757.7,10.87863072]
[1764613176774,0.72559411,2758.4,2757.7,10.87863072]
[1764613176976,0.72559411,2758.4,2757.5,0.363]
[1764613177396,0.72559411,2758.4,2757.4,11.24281431]
[1764613177784,1.08951411,2758.4,2757.4,11.24281431]
[1764613178090,0.72559411,2758.4,2757.4,7.25320954]
[1764613178296,0.36392,2758.2,2757.4,7.25320954]
[1764613178509,0.36392,2758.1,2757.4,3.62660477]
[1764613178703,0.0997041,2757.7,2756.7,7.25505132]
[1764613178906,0.581,2758.0,2756.7,7.25505132]
[1764613178907,0.36392,2757.6,2756.7,7.83605132]
[1764613179087,0.36392,2757.6,2756.7,11.46357698]
[1764613180408,0.002,2758.8,2757.6,0.405504]
[1764613180582,0.002,2758.8,2758.1,0.72559411]
[1764613180791,0.002,2758.8,2758.2,0.582]
[1764613180993,0.002,2758.8,2758.4,3.62529002]
[1764613183079,0.002,2758.8,2758.3,3.62541286]
[1764613183080,0.002,2758.8,2758.3,7.61383431]
[1764613183284,0.002,2758.8,2758.3,7.25083431]
[1764613183880,0.002,2758.8,2758.3,7.61383431]
[1764613184080,0.002,2758.8,2758.4,0.09979107]
[1764613185081,0.002,2758.8,2758.4,3.62529002]
[1764613185302,0.002,2758.8,2758.4,4.20729002]
[1764613186093,0.002,2758.8,2758.4,4.57029002]
[1764613186290,0.002,2758.8,2758.4,14.07246238]
[1764613186492,9.40987729,2760.9,2758.6,0.405504]
[1764613186818,0.582,2760.4,2759.0,0.363]
[1764613187013,0.582,2760.4,2759.0,0.945]
[1764613187214,0.582,2760.4,2759.0,5.29509574]
[1764613187379,0.582,2760.4,2759.0,4.93209574]
[1764613187578,0.582,2760.4,2759.0,5.29509574]
[1764613188014,0.582,2760.4,2759.0,5.03188681]
[1764613188211,9.35987729,2761.2,2759.0,5.43739081]
[1764613188422,4.20412709,2760.9,2759.0,4.85539081]
[1764613188687,0.72559411,2760.7,2759.0,5.03188681]
[1764613189095,0.72559411,2760.7,2759.0,5.43739081]
[1764613189291,0.72559411,2760.7,2759.0,4.85539081]
[1764613189492,0.72559411,2760.7,2759.0,4.93209574]
[1764613189905,0.72559411,2760.7,2759.0,5.13167788]
[1764613190103,0.72559411,2760.7,2759.0,4.93209574]
[1764613190715,0.405504,2760.7,2759.0,5.29509574]
[1764613191487,0.405504,2760.5,2759.0,4.56950163]
[1764613191691,0.405504,2760.5,2759.0,4.20650163]
[1764613191911,0.72559411,2760.6,2759.0,4.20650163]
[1764613191912,0.405504,2760.6,2759.0,4.20650163]
[1764613192299,4.34790474,2760.7,2759.0,4.20650163]
[1764613192300,0.405504,2760.7,2759.0,4.20650163]
[1764613192505,0.405504,2760.5,2759.0,4.56950163]
[1764613193226,0.405504,2760.5,2759.0,4.20650163]
[1764613194393,0.405504,2760.3,2759.0,3.62450163]
[1764613195211,0.405504,2760.5,2759.0,3.62450163]
[1764613196026,1.13109811,2760.5,2759.0,3.62450163]
[1764613196229,0.405504,2760.5,2759.0,3.62450163]
[1764613196432,0.72559411,2760.4,2759.0,3.62450163]
[1764613196656,0.72559411,2760.5,2759.0,3.62450163]
[1764613196809,0.405504,2760.4,2759.0,3.62450163]
[1764613197837,1.13109811,2760.4,2759.0,3.62450163]
[1764613198026,1.13109811,2760.5,2759.0,3.62450163]
[1764613198915,0.72559411,2760.1,2759.0,3.62450163]
[1764613199731,0.72559411,2760.1,2758.9,7.24926012]
[1764613199906,1.13109811,2760.5,2758.9,7.24926012]
[1764613200100,7.24617059,2760.1,2758.9,3.62462712]
[1764613200435,7.17559411,2760.0,2758.9,7.24926012]
[1764613200613,7.17559411,2760.0,2759.0,0.363]
[1764613201026,0.05,2760.8,2759.0,10.96243949]
[1764613201324,6.56066791,2762.3,2759.0,10.96243949]
[1764613201325,0.36392,2761.2,2760.0,0.09979107]
[1764613201506,0.36392,2761.2,2759.1,1.5139149]
[1764613201507,8.02593,2761.4,2759.9,0.405504]
[1764613201701,0.0997041,2761.0,2760.0,0.582]
[1764613202233,0.05,2761.8,2760.0,0.582]
[1764613202434,0.0997041,2760.9,2760.0,0.582]
[1764613202802,0.36392,2760.8,2759.2,0.405504]
[1764613203039,0.36392,2760.8,2759.4,0.768504]
[1764613203240,0.36392,2760.8,2759.6,0.363]
[1764613203417,0.36392,2760.8,2759.1,0.72559411]
[1764613203620,0.0997041,2760.5,2759.5,7.24768978]
[1764613204512,0.36392,2760.4,2759.5,3.62384489]
[1764613204746,0.72559411,2760.4,2759.1,3.62437026]
[1764613204930,0.0997041,2759.9,2759.1,7.24874052]
[1764613205650,0.36392,2759.6,2759.1,3.62437026]
[1764613205948,0.36392,2759.6,2759.0,7.24900326]
[1764613207050,0.36392,2759.6,2758.8,0.582]
[1764613207051,0.36392,2759.3,2758.9,3.62455433]
[1764613207256,0.36392,2759.5,2758.9,7.24918733]
[1764613207418,0.72559411,2759.9,2758.8,0.001]
[1764613207419,0.36392,2759.2,2758.8,0.001]
[1764613207618,0.0997041,2758.9,2758.8,0.001]
[1764613207917,0.36392,2759.0,2758.8,0.001]
[1764613209565,0.36392,2759.5,2758.8,0.001]
[1764613209716,0.36392,2759.8,2758.8,0.001]
[1764613210046,0.36392,2759.7,2758.8,0.001]
[1764613211459,0.94592,2759.8,2758.8,0.001]
[1764613211764,0.94592,2759.8,2758.8,10.87529317]
[1764613211971,0.94592,2759.8,2758.8,11.23829317]
[1764613212125,0.582,2759.8,2758.8,11.45729317]
[1764613212329,0.582,2759.8,2758.8,11.82029317]
[1764613212668,0.582,2759.8,2759.0,0.363]
[1764613212966,0.582,2759.8,2758.8,11.45729317]
[1764613212967,0.36392,2759.4,2758.8,3.62576439]
[1764613213166,0.582,2759.8,2758.8,3.62576439]
[1764613213337,0.36392,2759.5,2758.8,7.25052878]
[1764613213852,0.36392,2759.5,2758.8,0.001]
[1764613214530,0.36392,2759.3,2758.8,0.001]
[1764613215433,0.0997041,2758.9,2758.8,0.001]
[1764613215728,1.81280221,2758.9,2758.8,0.001]
[1764613215928,6.56554957,2758.9,2758.8,0.001]
[1764613216161,24.13268457,2758.9,2758.8,0.001]
[1764613216429,24.70137448,2758.9,2758.8,0.001]
[1764613216662,24.03805448,2758.9,2758.8,0.001]
[1764613217064,28.31666948,2758.9,2758.8,0.001]
[1764613217483,0.455504,2758.6,2758.5,0.001]
[1764613217632,13.44477311,2758.6,2758.5,0.001]
[1764613218033,24.84511529,2758.6,2758.5,0.001]
[1764613218240,21.15738429,2758.6,2758.5,0.001]
[1764613218777,14.72548729,2758.6,2758.5,0.001]
[1764613218950,7.19026002,2758.6,2758.5,0.001]
[1764613219276,4.59801911,2758.6,2758.5,0.001]
[1764613219477,4.46959411,2758.6,2758.5,0.001]
[1764613219650,4.49451411,2758.6,2758.5,0.001]
[1764613219972,1.67151411,2758.6,2758.5,0.001]
[1764613220272,1.40729821,2758.6,2758.5,0.001]
[1764613220473,2.49486217,2758.6,2758.5,0.001]
[1764613220869,5.29686217,2758.6,2758.5,0.001]
[1764613221642,2.49486217,2758.6,2758.5,0.001]
[1764613221841,5.31586217,2758.6,2758.5,0.001]
[1764613222671,11.76586217,2758.6,2758.5,0.001]
[1764613223276,0.72559411,2758.6,2758.5,0.001]
[1764613223442,0.36392,2758.6,2758.5,0.001]
[1764613223769,0.6817041,2758.6,2758.5,0.001]
[1764613226673,1.40729821,2758.6,2758.5,0.001]
[1764613226885,10.07158739,2758.6,2758.5,0.001]
[1764613227064,11.49830689,2758.6,2758.5,0.001]
[1764613228072,18.92505289,2758.6,2758.5,0.001]
[1764613228280,11.94603289,2758.6,2758.5,0.001]
[1764613230684,21.35903989,2758.6,2758.5,0.001]
[1764613231181,21.34528989,2758.6,2758.5,0.001]
[1764613232281,21.44879989,2758.6,2758.5,0.001]
[1764613233051,21.34497789,2758.6,2758.5,0.001]
[1764613233487,21.24527379,2758.6,2758.5,0.001]
[1764613233796,31.88157359,2758.3,2758.2,0.001]
[1764613233948,24.07628595,2758.3,2758.2,0.001]
[1764613234268,37.21681795,2758.3,2758.2,0.001]
[1764613234451,22.55348795,2758.3,2758.2,0.001]
[1764613235273,41.9338274,2758.3,2758.2,0.001]
[1764613235864,0.05,2757.8,2757.6,0.001]